[Event "Titled Tuesday Blitz August 23 Late 2022"]
[White "Uskov, Artem"]
[Black "Vlassov, Nikolai"]
[WhiteFideId "34254854"]
[BlackFideId "4103360"]
[WhiteElo "2335"]
[BlackElo "2324"]
[Result "1-0"]
[Round "10"]
[TimeControl "180+1"]
[Date "2022.08.23"]
[WhiteClock "0:00:45"]
[BlackClock "0:00:19"]

1. Nf3 {[%clk 0:02:38]}  c5 {[%clk 0:02:59]} 2. g3 {[%clk 0:02:38]}  Nc6 {[%clk 0:02:58]} 3. Bg2 {[%clk 0:02:39]}  e5 {[%clk 0:02:58]} 4. O-O {[%clk 0:02:40]}  g5 {[%clk 0:02:59]} 5. d3 {[%clk 0:02:38]}  g4 {[%clk 0:02:57]} 6. Nfd2 {[%clk 0:02:31]}  h5 {[%clk 0:02:57]} 7. c4 {[%clk 0:02:31]}  h4 {[%clk 0:02:57]} 8. Ne4 {[%clk 0:02:31]}  f5 {[%clk 0:02:55]} 9. Bg5 {[%clk 0:02:20]}  Be7 {[%clk 0:02:46]} 10. Nd6+ {[%clk 0:02:19]}  Kf8 {[%clk 0:02:47]} 11. Bxe7+ {[%clk 0:02:20]}  Ngxe7 {[%clk 0:02:44]} 12. e4 {[%clk 0:02:18]}  Rh6 {[%clk 0:02:03]} 13. Nxf5 {[%clk 0:01:58]}  Nxf5 {[%clk 0:02:03]} 14. exf5 {[%clk 0:01:59]}  Qg5 {[%clk 0:02:04]} 15. Nc3 {[%clk 0:01:51]}  d6 {[%clk 0:01:58]} 16. Ne4 {[%clk 0:01:50]}  Qxf5 {[%clk 0:01:50]} 17. f3 {[%clk 0:01:48]}  Ke7 {[%clk 0:01:51]} 18. fxg4 {[%clk 0:01:44]}  Qxg4 {[%clk 0:01:51]} 19. Qd2 {[%clk 0:01:44]}  Qg6 {[%clk 0:01:41]} 20. Rf6 {[%clk 0:01:42]}  Qxf6 {[%clk 0:01:42]} 21. Nxf6 {[%clk 0:01:42]}  Rxf6 {[%clk 0:01:42]} 22. Rf1 {[%clk 0:01:40]}  Rxf1+ {[%clk 0:01:40]} 23. Kxf1 {[%clk 0:01:41]}  hxg3 {[%clk 0:01:41]} 24. Qg5+ {[%clk 0:01:40]}  Kf7 {[%clk 0:01:24]} 25. Bd5+ {[%clk 0:01:37]}  Ke8 {[%clk 0:01:18]} 26. Qg8+ {[%clk 0:01:34]}  Kd7 {[%clk 0:01:15]} 27. Qf7+ {[%clk 0:01:34]}  Kd8 {[%clk 0:01:10]} 28. hxg3 {[%clk 0:01:24]}  Rb8 {[%clk 0:00:36]} 29. g4 {[%clk 0:01:22]}  Bd7 {[%clk 0:00:36]} 30. g5 {[%clk 0:01:16]}  Kc7 {[%clk 0:00:35]} 31. g6 {[%clk 0:01:10]}  e4 {[%clk 0:00:21]} 32. Bxc6 {[%clk 0:00:44]}  bxc6 {[%clk 0:00:20]} 33. g7 {[%clk 0:00:45]}  exd3 {[%clk 0:00:19]} 34. g8=Q {[%clk 0:00:45]} 1-0


[Site "https://www.chess.com"]

[Event "Titled Tuesday Blitz August 23 Late 2022"]
[White "Wan, Joseph"]
[Black "Lenderman, Aleksandr"]
[WhiteFideId "2069890"]
[BlackFideId "2021285"]
[WhiteElo "2198"]
[BlackElo "2607"]
[Result "0-1"]
[Round "10"]
[TimeControl "180+1"]
[Date "2022.08.23"]
[WhiteClock "0:00:06"]
[BlackClock "0:00:57"]

1. d4 {[%clk 0:03:00]}  e6 {[%clk 0:02:46]} 2. Bf4 {[%clk 0:02:59]}  c5 {[%clk 0:02:44]} 3. e3 {[%clk 0:02:58]}  Qb6 {[%clk 0:02:40]} 4. Nc3 {[%clk 0:02:55]}  Nf6 {[%clk 0:02:38]} 5. Nf3 {[%clk 0:02:52]}  Be7 {[%clk 0:02:30]} 6. Bd3 {[%clk 0:02:28]}  d5 {[%clk 0:02:09]} 7. dxc5 {[%clk 0:02:23]}  Bxc5 {[%clk 0:02:08]} 8. O-O {[%clk 0:02:23]}  Nc6 {[%clk 0:02:08]} 9. Na4 {[%clk 0:02:20]}  Qa5 {[%clk 0:02:06]} 10. c3 {[%clk 0:02:08]}  Be7 {[%clk 0:02:04]} 11. b4 {[%clk 0:02:08]}  Qd8 {[%clk 0:02:04]} 12. h3 {[%clk 0:02:08]}  O-O {[%clk 0:01:56]} 13. a3 {[%clk 0:02:08]}  Bd6 {[%clk 0:01:56]} 14. Bg5 {[%clk 0:02:07]}  e5 {[%clk 0:01:49]} 15. e4 {[%clk 0:02:07]}  dxe4 {[%clk 0:01:44]} 16. Bxe4 {[%clk 0:02:06]}  Bc7 {[%clk 0:01:44]} 17. Qxd8 {[%clk 0:01:56]}  Rxd8 {[%clk 0:01:45]} 18. Bxf6 {[%clk 0:01:48]}  gxf6 {[%clk 0:01:43]} 19. Rad1 {[%clk 0:01:48]}  Rxd1 {[%clk 0:01:39]} 20. Rxd1 {[%clk 0:01:47]}  f5 {[%clk 0:01:40]} 21. Bxc6 {[%clk 0:01:45]}  bxc6 {[%clk 0:01:40]} 22. Nc5 {[%clk 0:01:46]}  a5 {[%clk 0:01:38]} 23. Nd2 {[%clk 0:01:33]}  axb4 {[%clk 0:01:35]} 24. axb4 {[%clk 0:01:34]}  Kf8 {[%clk 0:01:29]} 25. Nc4 {[%clk 0:01:32]}  Ke7 {[%clk 0:01:29]} 26. Kf1 {[%clk 0:01:08]}  f4 {[%clk 0:01:23]} 27. Ke2 {[%clk 0:00:56]}  Bf5 {[%clk 0:01:18]} 28. Rd2 {[%clk 0:00:51]}  Rg8 {[%clk 0:01:15]} 29. Kf1 {[%clk 0:00:47]}  Ra8 {[%clk 0:01:15]} 30. Ke2 {[%clk 0:00:45]}  Ra1 {[%clk 0:01:15]} 31. Nb2 {[%clk 0:00:35]}  e4 {[%clk 0:01:12]} 32. Nba4 {[%clk 0:00:27]}  Be5 {[%clk 0:01:07]} 33. Rb2 {[%clk 0:00:19]}  Rg1 {[%clk 0:01:05]} 34. b5 {[%clk 0:00:17]}  Rxg2 {[%clk 0:00:56]} 35. Kf1 {[%clk 0:00:15]}  f3 {[%clk 0:00:55]} 36. bxc6 {[%clk 0:00:15]}  Bxh3 {[%clk 0:00:54]} 37. Ke1 {[%clk 0:00:13]}  e3 {[%clk 0:00:51]} 38. fxe3 {[%clk 0:00:11]}  Bg3+ {[%clk 0:00:49]} 39. Kd1 {[%clk 0:00:10]}  Rxb2 {[%clk 0:00:49]} 40. Nxb2 {[%clk 0:00:10]}  f2 {[%clk 0:00:50]} 41. Nbd3 {[%clk 0:00:05]}  f1=Q+ {[%clk 0:00:50]} 42. Kc2 {[%clk 0:00:05]}  Qe2+ {[%clk 0:00:50]} 43. Kb3 {[%clk 0:00:04]}  Qxe3 {[%clk 0:00:51]} 44. Kb4 {[%clk 0:00:02]}  Bd6 {[%clk 0:00:51]} 45. Kc4 {[%clk 0:00:02]}  Be6+ {[%clk 0:00:51]} 46. Nxe6 {[%clk 0:00:02]}  Qxe6+ {[%clk 0:00:52]} 47. Kd4 {[%clk 0:00:02]}  f5 {[%clk 0:00:52]} 48. c4 {[%clk 0:00:01]}  Qe4+ {[%clk 0:00:52]} 49. Kc3 {[%clk 0:00:02]}  Qxc6 {[%clk 0:00:53]} 50. Nc1 {[%clk 0:00:02]}  Be5+ {[%clk 0:00:53]} 51. Kc2 {[%clk 0:00:02]}  Qxc4+ {[%clk 0:00:53]} 52. Kd1 {[%clk 0:00:03]}  Bf4 {[%clk 0:00:53]} 53. Ne2 {[%clk 0:00:04]}  Qd3+ {[%clk 0:00:53]} 54. Ke1 {[%clk 0:00:05]}  Be3 {[%clk 0:00:54]} 55. Kf1 {[%clk 0:00:05]}  Qd1+ {[%clk 0:00:54]} 56. Kg2 {[%clk 0:00:05]}  Qxe2+ {[%clk 0:00:55]} 57. Kg3 {[%clk 0:00:05]}  Qg4+ {[%clk 0:00:55]} 58. Kh2 {[%clk 0:00:05]}  Bf4+ {[%clk 0:00:55]} 59. Kh1 {[%clk 0:00:06]}  Qh3+ {[%clk 0:00:56]} 60. Kg1 {[%clk 0:00:06]}  Be3# {[%clk 0:00:57]} 0-1


[Site "https://www.chess.com"]

[Event "Titled Tuesday Blitz August 23 Late 2022"]
[White "Xiong, Jeffery"]
[Black "Nakamura, Hikaru"]
[WhiteFideId "2047640"]
[BlackFideId "2016192"]
[WhiteElo "2714"]
[BlackElo "2850"]
[Result "1-0"]
[Round "10"]
[TimeControl "180+1"]
[Date "2022.08.23"]
[WhiteClock "0:01:47"]
[BlackClock "0:01:15"]

1. e4 {[%clk 0:03:00]}  g6 {[%clk 0:02:59]} 2. d4 {[%clk 0:03:00]}  Bg7 {[%clk 0:02:59]} 3. Nf3 {[%clk 0:03:00]}  c6 {[%clk 0:02:59]} 4. c4 {[%clk 0:02:59]}  d6 {[%clk 0:02:56]} 5. Nc3 {[%clk 0:03:00]}  Bg4 {[%clk 0:02:56]} 6. Be2 {[%clk 0:02:58]}  Nd7 {[%clk 0:02:55]} 7. Be3 {[%clk 0:02:57]}  Ngf6 {[%clk 0:02:56]} 8. O-O {[%clk 0:02:57]}  O-O {[%clk 0:02:55]} 9. h3 {[%clk 0:02:56]}  Bxf3 {[%clk 0:02:56]} 10. Bxf3 {[%clk 0:02:57]}  e5 {[%clk 0:02:56]} 11. d5 {[%clk 0:02:57]}  c5 {[%clk 0:02:57]} 12. a3 {[%clk 0:02:55]}  a6 {[%clk 0:02:52]} 13. b4 {[%clk 0:02:55]}  Rc8 {[%clk 0:02:52]} 14. Be2 {[%clk 0:02:55]}  Ne8 {[%clk 0:02:42]} 15. Rb1 {[%clk 0:02:55]}  b6 {[%clk 0:02:39]} 16. Qa4 {[%clk 0:02:53]}  f5 {[%clk 0:02:35]} 17. Qxa6 {[%clk 0:02:30]}  Ra8 {[%clk 0:02:22]} 18. Qb7 {[%clk 0:02:30]}  Rf7 {[%clk 0:02:22]} 19. bxc5 {[%clk 0:02:17]}  dxc5 {[%clk 0:01:58]} 20. exf5 {[%clk 0:02:17]}  Nd6 {[%clk 0:01:37]} 21. Qc6 {[%clk 0:02:17]}  Rc8 {[%clk 0:01:31]} 22. Qxd6 {[%clk 0:02:10]}  Rf6 {[%clk 0:01:30]} 23. Bg5 {[%clk 0:02:09]}  Rxd6 {[%clk 0:01:20]} 24. Bxd8 {[%clk 0:02:10]}  Rxd8 {[%clk 0:01:20]} 25. Ne4 {[%clk 0:02:10]}  Nf6 {[%clk 0:01:20]} 26. Nxd6 {[%clk 0:02:10]}  Rxd6 {[%clk 0:01:21]} 27. fxg6 {[%clk 0:02:10]}  hxg6 {[%clk 0:01:19]} 28. Rb3 {[%clk 0:02:01]}  e4 {[%clk 0:01:17]} 29. Rfb1 {[%clk 0:02:00]}  e3 {[%clk 0:01:15]} 30. Rxb6 {[%clk 0:01:56]}  exf2+ {[%clk 0:01:15]} 31. Kxf2 {[%clk 0:01:49]}  Rd7 {[%clk 0:01:15]} 32. Rb7 {[%clk 0:01:47]} 1-0


[Site "https://www.chess.com"]

[Event "Titled Tuesday Blitz August 23 Late 2022"]
[White "Arias, Juan Cruz"]
[Black "Leitao, Rafael"]
[WhiteFideId "118540"]
[BlackFideId "2101246"]
[WhiteElo "2091"]
[BlackElo "2609"]
[Result "0-1"]
[Round "11"]
[TimeControl "180+1"]
[Date "2022.08.23"]
[WhiteClock "0:00:36"]
[BlackClock "0:00:25"]

1. e4 {[%clk 0:03:00]}  c5 {[%clk 0:02:59]} 2. Nf3 {[%clk 0:03:01]}  d6 {[%clk 0:03:00]} 3. d4 {[%clk 0:03:01]}  cxd4 {[%clk 0:03:00]} 4. Nxd4 {[%clk 0:03:02]}  Nf6 {[%clk 0:03:01]} 5. Nc3 {[%clk 0:03:03]}  Nc6 {[%clk 0:03:02]} 6. Nb3 {[%clk 0:02:57]}  e6 {[%clk 0:02:59]} 7. Bd3 {[%clk 0:02:57]}  Be7 {[%clk 0:02:59]} 8. O-O {[%clk 0:02:58]}  a6 {[%clk 0:02:59]} 9. f4 {[%clk 0:02:57]}  b5 {[%clk 0:02:56]} 10. Qf3 {[%clk 0:02:54]}  Bb7 {[%clk 0:02:45]} 11. Qh3 {[%clk 0:02:50]}  O-O {[%clk 0:02:38]} 12. Bd2 {[%clk 0:02:39]}  g6 {[%clk 0:02:22]} 13. Rae1 {[%clk 0:02:30]}  Nb4 {[%clk 0:02:16]} 14. f5 {[%clk 0:02:28]}  Nxd3 {[%clk 0:02:12]} 15. cxd3 {[%clk 0:02:29]}  exf5 {[%clk 0:02:09]} 16. exf5 {[%clk 0:02:29]}  Re8 {[%clk 0:01:39]} 17. Bg5 {[%clk 0:02:23]}  Nh5 {[%clk 0:01:28]} 18. f6 {[%clk 0:01:47]}  Qb6+ {[%clk 0:01:04]} 19. Be3 {[%clk 0:01:44]}  Qc6 {[%clk 0:01:04]} 20. Nd4 {[%clk 0:01:41]}  Qc7 {[%clk 0:01:00]} 21. fxe7 {[%clk 0:01:40]}  Rxe7 {[%clk 0:01:01]} 22. g4 {[%clk 0:01:30]}  Ng7 {[%clk 0:00:59]} 23. Bg5 {[%clk 0:01:25]}  Rxe1 {[%clk 0:00:56]} 24. Rxe1 {[%clk 0:01:26]}  Qc5 {[%clk 0:00:52]} 25. Bf6 {[%clk 0:01:19]}  Re8 {[%clk 0:00:45]} 26. Re3 {[%clk 0:01:04]}  b4 {[%clk 0:00:41]} 27. Nce2 {[%clk 0:00:51]}  Qd5 {[%clk 0:00:27]} 28. Bxg7 {[%clk 0:00:35]}  Rxe3 {[%clk 0:00:26]} 29. Qxe3 {[%clk 0:00:36]}  Qg2# {[%clk 0:00:25]} 0-1


[Site "https://www.chess.com"]

[Event "Titled Tuesday Blitz August 23 Late 2022"]
[White "Bacrot, Etienne"]
[Black "Hjartarson, Johann"]
[WhiteFideId "605506"]
[BlackFideId "2300044"]
[WhiteElo "2673"]
[BlackElo "2458"]
[Result "1-0"]
[Round "11"]
[TimeControl "180+1"]
[Date "2022.08.23"]
[WhiteClock "0:00:29"]
[BlackClock "0:00:16"]

1. e4 {[%clk 0:03:00]}  g6 {[%clk 0:02:58]} 2. h4 {[%clk 0:03:00]}  h5 {[%clk 0:02:55]} 3. d4 {[%clk 0:02:56]}  d6 {[%clk 0:02:55]} 4. Nc3 {[%clk 0:02:56]}  a6 {[%clk 0:02:55]} 5. Bc4 {[%clk 0:02:52]}  b5 {[%clk 0:02:54]} 6. Bb3 {[%clk 0:02:53]}  e6 {[%clk 0:02:45]} 7. f4 {[%clk 0:02:48]}  Bg7 {[%clk 0:02:44]} 8. Nf3 {[%clk 0:02:48]}  Nf6 {[%clk 0:02:42]} 9. Qe2 {[%clk 0:02:43]}  Ng4 {[%clk 0:02:39]} 10. f5 {[%clk 0:02:40]}  Nc6 {[%clk 0:02:29]} 11. fxg6 {[%clk 0:02:32]}  fxg6 {[%clk 0:02:28]} 12. Bg5 {[%clk 0:02:31]}  Qd7 {[%clk 0:02:18]} 13. O-O-O {[%clk 0:02:30]}  Na5 {[%clk 0:02:15]} 14. Rhf1 {[%clk 0:02:08]}  O-O {[%clk 0:02:08]} 15. e5 {[%clk 0:01:42]}  d5 {[%clk 0:02:01]} 16. Qd3 {[%clk 0:01:42]}  Rf5 {[%clk 0:01:43]} 17. Ne2 {[%clk 0:01:41]}  Nxb3+ {[%clk 0:01:30]} 18. axb3 {[%clk 0:01:39]}  a5 {[%clk 0:01:15]} 19. Ng3 {[%clk 0:01:33]}  a4 {[%clk 0:01:14]} 20. b4 {[%clk 0:01:21]}  Bf8 {[%clk 0:01:07]} 21. Nxf5 {[%clk 0:01:14]}  gxf5 {[%clk 0:01:05]} 22. Bd2 {[%clk 0:01:01]}  Qc6 {[%clk 0:01:00]} 23. Kb1 {[%clk 0:00:58]}  Qc4 {[%clk 0:00:56]} 24. Qxc4 {[%clk 0:00:54]}  bxc4 {[%clk 0:00:52]} 25. Ng5 {[%clk 0:00:48]}  Rb8 {[%clk 0:00:30]} 26. c3 {[%clk 0:00:41]}  Bd7 {[%clk 0:00:30]} 27. Nh3 {[%clk 0:00:39]}  Rb6 {[%clk 0:00:28]} 28. Kc2 {[%clk 0:00:33]}  Be8 {[%clk 0:00:26]} 29. Bg5 {[%clk 0:00:31]}  Kh7 {[%clk 0:00:24]} 30. Kd2 {[%clk 0:00:32]}  Ra6 {[%clk 0:00:22]} 31. Ra1 {[%clk 0:00:32]}  Bd7 {[%clk 0:00:18]} 32. Nf4 {[%clk 0:00:32]}  Be8 {[%clk 0:00:17]} 33. Ra3 {[%clk 0:00:31]}  Ra8 {[%clk 0:00:16]} 34. Ke2 {[%clk 0:00:30]}  Ra6 {[%clk 0:00:16]} 35. Rfa1 {[%clk 0:00:30]}  Ra8 {[%clk 0:00:16]} 36. Nxe6 {[%clk 0:00:29]} 1-0


[Site "https://www.chess.com"]

[Event "Titled Tuesday Blitz August 23 Late 2022"]
[White "Carlsen, Magnus"]
[Black "Paravyan, David"]
[WhiteFideId "1503014"]
[BlackFideId "4194985"]
[WhiteElo "2830"]
[BlackElo "2569"]
[Result "1/2-1/2"]
[Round "11"]
[TimeControl "180+1"]
[Date "2022.08.23"]
[WhiteClock "0:00:12"]
[BlackClock "0:00:04"]

1. b4 {[%clk 0:03:00]}  e5 {[%clk 0:02:54]} 2. Bb2 {[%clk 0:03:01]}  Bxb4 {[%clk 0:02:47]} 3. Bxe5 {[%clk 0:03:00]}  Nf6 {[%clk 0:02:47]} 4. c3 {[%clk 0:03:01]}  Be7 {[%clk 0:02:47]} 5. g3 {[%clk 0:03:01]}  Nc6 {[%clk 0:02:44]} 6. Bxf6 {[%clk 0:03:01]}  Bxf6 {[%clk 0:02:45]} 7. Bg2 {[%clk 0:03:00]}  d5 {[%clk 0:02:45]} 8. d4 {[%clk 0:03:01]}  O-O {[%clk 0:02:43]} 9. e3 {[%clk 0:03:01]}  Na5 {[%clk 0:02:42]} 10. Ne2 {[%clk 0:03:01]}  b6 {[%clk 0:02:27]} 11. O-O {[%clk 0:03:01]}  Ba6 {[%clk 0:02:26]} 12. Re1 {[%clk 0:03:01]}  Rc8 {[%clk 0:02:23]} 13. Nd2 {[%clk 0:03:00]}  Nc4 {[%clk 0:02:20]} 14. Qa4 {[%clk 0:02:58]}  Nxd2 {[%clk 0:02:04]} 15. Qxa6 {[%clk 0:02:58]}  c6 {[%clk 0:02:05]} 16. Rad1 {[%clk 0:02:27]}  Ne4 {[%clk 0:01:45]} 17. c4 {[%clk 0:02:22]}  h5 {[%clk 0:01:42]} 18. cxd5 {[%clk 0:02:19]}  cxd5 {[%clk 0:01:43]} 19. Bxe4 {[%clk 0:02:14]}  dxe4 {[%clk 0:01:43]} 20. Qxa7 {[%clk 0:02:14]}  Rc2 {[%clk 0:01:14]} 21. Qa4 {[%clk 0:02:11]}  Qc8 {[%clk 0:01:11]} 22. Qb5 {[%clk 0:01:52]}  Qg4 {[%clk 0:01:01]} 23. Nf4 {[%clk 0:01:42]}  Bg5 {[%clk 0:00:39]} 24. Ne2 {[%clk 0:01:15]}  Bh6 {[%clk 0:00:26]} 25. Rc1 {[%clk 0:01:03]}  Rxa2 {[%clk 0:00:13]} 26. Nc3 {[%clk 0:01:03]}  Rxf2 {[%clk 0:00:13]} 27. Nxe4 {[%clk 0:00:41]}  Rf5 {[%clk 0:00:07]} 28. Qd3 {[%clk 0:00:35]}  h4 {[%clk 0:00:07]} 29. Rf1 {[%clk 0:00:26]}  Rxf1+ {[%clk 0:00:06]} 30. Rxf1 {[%clk 0:00:24]}  Re8 {[%clk 0:00:07]} 31. Nd6 {[%clk 0:00:13]}  Rxe3 {[%clk 0:00:05]} 32. Qf5 {[%clk 0:00:13]}  Qxf5 {[%clk 0:00:02]} 33. Nxf5 {[%clk 0:00:14]}  Rd3 {[%clk 0:00:03]} 34. Rb1 {[%clk 0:00:10]}  hxg3 {[%clk 0:00:02]} 35. hxg3 {[%clk 0:00:08]}  Be3+ {[%clk 0:00:03]} 36. Kg2 {[%clk 0:00:09]}  Bxd4 {[%clk 0:00:03]} 37. Nxd4 {[%clk 0:00:09]}  Rxd4 {[%clk 0:00:04]} 38. Rxb6 {[%clk 0:00:10]}  g6 {[%clk 0:00:04]} 39. Rb8+ {[%clk 0:00:10]}  Kg7 {[%clk 0:00:04]} 40. Rb7 {[%clk 0:00:11]}  Rd5 {[%clk 0:00:05]} 41. Rb6 {[%clk 0:00:11]}  f5 {[%clk 0:00:05]} 42. Rb7+ {[%clk 0:00:11]}  Kh6 {[%clk 0:00:05]} 43. Rb6 {[%clk 0:00:12]}  Kg5 {[%clk 0:00:06]} 44. Ra6 {[%clk 0:00:10]}  Rd2+ {[%clk 0:00:06]} 45. Kf3 {[%clk 0:00:10]}  Rd3+ {[%clk 0:00:06]} 46. Kg2 {[%clk 0:00:09]}  Kh5 {[%clk 0:00:06]} 47. g4+ {[%clk 0:00:10]}  fxg4 {[%clk 0:00:05]} 48. Ra8 {[%clk 0:00:10]}  Kh4 {[%clk 0:00:05]} 49. Rh8+ {[%clk 0:00:10]}  Kg5 {[%clk 0:00:05]} 50. Ra8 {[%clk 0:00:11]}  Rc3 {[%clk 0:00:06]} 51. Rb8 {[%clk 0:00:11]}  Re3 {[%clk 0:00:06]} 52. Ra8 {[%clk 0:00:11]}  Kf4 {[%clk 0:00:06]} 53. Rf8+ {[%clk 0:00:11]}  Kg5 {[%clk 0:00:06]} 54. Ra8 {[%clk 0:00:11]}  Kh4 {[%clk 0:00:03]} 55. Rh8+ {[%clk 0:00:11]}  Kg5 {[%clk 0:00:04]} 56. Ra8 {[%clk 0:00:12]} 1/2-1/2


[Site "https://www.chess.com"]

[Event "Titled Tuesday Blitz August 23 Late 2022"]
[White "Cruz, Cristhian"]
[Black "Poltorak, Sebastian"]
[WhiteFideId "3801969"]
[BlackFideId "1199498"]
[WhiteElo "2497"]
[BlackElo "2102"]
[Result "0-1"]
[Round "11"]
[TimeControl "180+1"]
[Date "2022.08.23"]
[WhiteClock "0:01:14"]
[BlackClock "0:00:46"]

1. d4 {[%clk 0:03:00]}  Nf6 {[%clk 0:03:00]} 2. c4 {[%clk 0:03:01]}  g6 {[%clk 0:02:59]} 3. Nc3 {[%clk 0:03:01]}  d5 {[%clk 0:03:00]} 4. cxd5 {[%clk 0:02:59]}  Nxd5 {[%clk 0:03:01]} 5. e4 {[%clk 0:03:00]}  Nxc3 {[%clk 0:03:01]} 6. bxc3 {[%clk 0:03:00]}  Bg7 {[%clk 0:03:02]} 7. Bg5 {[%clk 0:02:59]}  c5 {[%clk 0:02:39]} 8. Rc1 {[%clk 0:02:57]}  Qa5 {[%clk 0:02:16]} 9. Qd2 {[%clk 0:02:47]}  h6 {[%clk 0:01:57]} 10. Be3 {[%clk 0:02:44]}  cxd4 {[%clk 0:01:54]} 11. cxd4 {[%clk 0:02:45]}  Qxd2+ {[%clk 0:01:52]} 12. Kxd2 {[%clk 0:02:46]}  O-O {[%clk 0:01:52]} 13. Nf3 {[%clk 0:02:34]}  Rd8 {[%clk 0:01:47]} 14. Rc7 {[%clk 0:02:14]}  Nc6 {[%clk 0:01:32]} 15. Bd3 {[%clk 0:01:45]}  Nxd4 {[%clk 0:01:14]} 16. Nxd4 {[%clk 0:01:44]}  Bxd4 {[%clk 0:01:15]} 17. Bxd4 {[%clk 0:01:44]}  Rxd4 {[%clk 0:01:15]} 18. Rxe7 {[%clk 0:01:38]}  Be6 {[%clk 0:01:15]} 19. Ke3 {[%clk 0:01:37]}  Rad8 {[%clk 0:01:15]} 20. Be2 {[%clk 0:01:36]}  Bxa2 {[%clk 0:01:12]} 21. Rxb7 {[%clk 0:01:35]}  Rxe4+ {[%clk 0:01:12]} 22. Kxe4 {[%clk 0:01:33]}  Bd5+ {[%clk 0:01:13]} 23. Ke3 {[%clk 0:01:33]}  Bxb7 {[%clk 0:01:14]} 24. f3 {[%clk 0:01:33]}  Re8+ {[%clk 0:01:10]} 25. Kf2 {[%clk 0:01:32]}  a5 {[%clk 0:00:57]} 26. Rb1 {[%clk 0:01:29]}  Bd5 {[%clk 0:00:51]} 27. Rd1 {[%clk 0:01:14]}  Bb3 {[%clk 0:00:49]} 28. Rd7 {[%clk 0:01:14]}  Ra8 {[%clk 0:00:46]} 0-1


[Site "https://www.chess.com"]

[Event "Titled Tuesday Blitz August 23 Late 2022"]
[White "Czopor, Maciej"]
[Black "Jaskolka, Tomasz"]
[WhiteFideId "21805431"]
[BlackFideId "1170791"]
[WhiteElo "1924"]
[BlackElo "2073"]
[Result "1-0"]
[Round "11"]
[TimeControl "180+1"]
[Date "2022.08.23"]
[WhiteClock "0:00:36"]
[BlackClock "0:00:28"]

1. c4 {[%clk 0:03:00]}  c6 {[%clk 0:02:57]} 2. b3 {[%clk 0:02:58]}  d5 {[%clk 0:02:57]} 3. Bb2 {[%clk 0:02:59]}  Nf6 {[%clk 0:02:56]} 4. Nf3 {[%clk 0:02:56]}  a6 {[%clk 0:02:56]} 5. g3 {[%clk 0:02:54]}  Bf5 {[%clk 0:02:56]} 6. Bg2 {[%clk 0:02:52]}  e6 {[%clk 0:02:56]} 7. O-O {[%clk 0:02:52]}  Nbd7 {[%clk 0:02:55]} 8. d3 {[%clk 0:02:51]}  Bg6 {[%clk 0:02:54]} 9. Nh4 {[%clk 0:02:51]}  Be7 {[%clk 0:02:53]} 10. Nd2 {[%clk 0:02:49]}  O-O {[%clk 0:02:34]} 11. Nxg6 {[%clk 0:02:46]}  hxg6 {[%clk 0:02:34]} 12. e4 {[%clk 0:02:45]}  Nc5 {[%clk 0:02:26]} 13. e5 {[%clk 0:02:29]}  Ne8 {[%clk 0:02:15]} 14. d4 {[%clk 0:02:29]}  Nd7 {[%clk 0:02:15]} 15. h4 {[%clk 0:02:23]}  dxc4 {[%clk 0:02:05]} 16. bxc4 {[%clk 0:02:14]}  Nc7 {[%clk 0:02:04]} 17. h5 {[%clk 0:02:10]}  gxh5 {[%clk 0:01:55]} 18. Qxh5 {[%clk 0:02:11]}  g6 {[%clk 0:01:56]} 19. Qe2 {[%clk 0:02:05]}  Re8 {[%clk 0:01:55]} 20. Ne4 {[%clk 0:01:56]}  Rb8 {[%clk 0:01:10]} 21. Rab1 {[%clk 0:01:55]}  c5 {[%clk 0:01:06]} 22. Nd6 {[%clk 0:01:36]}  Rf8 {[%clk 0:00:57]} 23. Nxb7 {[%clk 0:01:22]}  Qc8 {[%clk 0:00:57]} 24. Na5 {[%clk 0:01:18]}  cxd4 {[%clk 0:00:52]} 25. Nc6 {[%clk 0:01:17]}  Bc5 {[%clk 0:00:51]} 26. Nxb8 {[%clk 0:01:15]}  Nxb8 {[%clk 0:00:49]} 27. Qe4 {[%clk 0:01:11]}  Qd7 {[%clk 0:00:48]} 28. Rfd1 {[%clk 0:01:10]}  Rd8 {[%clk 0:00:47]} 29. Bf3 {[%clk 0:00:47]}  a5 {[%clk 0:00:47]} 30. Kg2 {[%clk 0:00:47]}  Nba6 {[%clk 0:00:43]} 31. Rh1 {[%clk 0:00:45]}  Bf8 {[%clk 0:00:43]} 32. Qh4 {[%clk 0:00:39]}  Bg7 {[%clk 0:00:42]} 33. Ba3 {[%clk 0:00:35]}  Nb4 {[%clk 0:00:41]} 34. Qh7+ {[%clk 0:00:34]}  Kf8 {[%clk 0:00:41]} 35. Rxb4 {[%clk 0:00:35]}  axb4 {[%clk 0:00:27]} 36. Bxb4+ {[%clk 0:00:36]}  Ke8 {[%clk 0:00:27]} 37. Qg8+ {[%clk 0:00:35]}  Bf8 {[%clk 0:00:28]} 38. Qxf8# {[%clk 0:00:36]} 1-0


[Site "https://www.chess.com"]